{"text_format":"1","workbook":"xlsx","n_sheets":4,"sheets":["Obtain constants","Obtain Comp. Strength","Calculations","Sheet1"],"not_rendered":{"charts":0,"images":2,"macros":1,"external_links":0,"defined_names":0,"comments":0,"pivot_tables":0},"unopened":[],"bounds":{"document_bytes":16777216,"sheet_cells":100000,"rows_first":2000,"rows_last":500,"rows_between":2000,"halvings":0,"cell_chars":16384,"cell_head_chars":4096},"cells_cut":0,"cells_raw":0,"read":"whole","date_system":"1900"}

{"sheet":"Obtain constants","index":0,"n_rows":38,"n_cols":5,"rows_kept":38,"cut":false,"hidden":false,"merged":[[0,0,0,8],[4,3,5,3],[4,2,5,2],[4,1,5,1]]}
[]
[]
[null,null,"TABELLE 1"]
[]
[null,"Testpunkt Nr.","Druckfestigkeit fck (MPa or PSI)","Silver-/Original Schmidt  \nRuckprallwerte (S)"]
[null,null,null,null," "]
[null,1]
[null,{"$f":"B7+1","v":2}]
[null,{"$f":"B8+1","v":3}]
[null,4]
[null,5]
[null,6]
[null,7]
[null,8]
[null,9]
[null,10]
[null,11]
[null,12]
[null,13]
[null,14]
[null,15]
[null,16]
[null,17]
[null,18]
[null,19]
[null,20]
[]
[]
[]
[null,null,"Konstanten"," der Polynomial-Kurve"]
[null,null,"a=",{"$f":"+IF(Calculations!$I$8<Calculations!$O$8,Calculations!O6,Calculations!I6)","v":0}]
[null,null,"b=",{"$f":"+IF(Calculations!$I$8<Calculations!$O$8,Calculations!P6,Calculations!J6)","v":0}]
[null,null,"c=",{"$f":"+IF(Calculations!$I$8<Calculations!$O$8,Calculations!Q6,Calculations!K6)","v":0}]
[null,null,"d=",{"$f":"+IF(Calculations!$I$8<Calculations!$O$8,Calculations!R6,\"\")","v":""}]
[]
[]
[]
[null,null," "]

{"sheet":"Obtain Comp. Strength","index":1,"n_rows":105,"n_cols":3,"rows_kept":105,"cut":false,"hidden":false,"merged":[[3,1,4,1],[3,2,4,2],[0,0,0,5]]}
["                                                       Bestimmung der Druckfestigkeit"]
[]
[null,"TABELLE 2"]
["Datensatz Nr.","Druckfestigkeit fck    (MPa oder PSI)","Silver-/Original Schmidt  \nRückprallwerte (S)"]
[]
[1]
[{"$f":"A6+1","v":2}]
[{"$f":"A7+1","v":3}]
[4]
[5]
[6]
[7]
[8]
[9]
[10]
[11]
[12]
[13]
[14,{"$f":"IF(C19<>\"\",Calculations!T19,\"\")","v":""}]
[15,{"$f":"IF(C20<>\"\",Calculations!T20,\"\")","v":""}]
[16,{"$f":"IF(C21<>\"\",Calculations!T21,\"\")","v":""}]
[17,{"$f":"IF(C22<>\"\",Calculations!T22,\"\")","v":""}]
[18,{"$f":"IF(C23<>\"\",Calculations!T23,\"\")","v":""}]
[19,{"$f":"IF(C24<>\"\",Calculations!T24,\"\")","v":""}]
[20,{"$f":"IF(C25<>\"\",Calculations!T25,\"\")","v":""}]
[21,{"$f":"IF(C26<>\"\",Calculations!T26,\"\")","v":""}]
[22,{"$f":"IF(C27<>\"\",Calculations!T27,\"\")","v":""}]
[23,{"$f":"IF(C28<>\"\",Calculations!T28,\"\")","v":""}]
[24,{"$f":"IF(C29<>\"\",Calculations!T29,\"\")","v":""}]
[25,{"$f":"IF(C30<>\"\",Calculations!T30,\"\")","v":""}]
[26,{"$f":"IF(C31<>\"\",Calculations!T31,\"\")","v":""}]
[27,{"$f":"IF(C32<>\"\",Calculations!T32,\"\")","v":""}]
[28,{"$f":"IF(C33<>\"\",Calculations!T33,\"\")","v":""}]
[29,{"$f":"IF(C34<>\"\",Calculations!T34,\"\")","v":""}]
[30,{"$f":"IF(C35<>\"\",Calculations!T35,\"\")","v":""}]
[31,{"$f":"IF(C36<>\"\",Calculations!T36,\"\")","v":""}]
[32,{"$f":"IF(C37<>\"\",Calculations!T37,\"\")","v":""}]
[33,{"$f":"IF(C38<>\"\",Calculations!T38,\"\")","v":""}]
[34,{"$f":"IF(C39<>\"\",Calculations!T39,\"\")","v":""}]
[35,{"$f":"IF(C40<>\"\",Calculations!T40,\"\")","v":""}]
[36,{"$f":"IF(C41<>\"\",Calculations!T41,\"\")","v":""}]
[37,{"$f":"IF(C42<>\"\",Calculations!T42,\"\")","v":""}]
[38,{"$f":"IF(C43<>\"\",Calculations!T43,\"\")","v":""}]
[39,{"$f":"IF(C44<>\"\",Calculations!T44,\"\")","v":""}]
[40,{"$f":"IF(C45<>\"\",Calculations!T45,\"\")","v":""}]
[41,{"$f":"IF(C46<>\"\",Calculations!T46,\"\")","v":""}]
[42,{"$f":"IF(C47<>\"\",Calculations!T47,\"\")","v":""}]
[43,{"$f":"IF(C48<>\"\",Calculations!T48,\"\")","v":""}]
[44,{"$f":"IF(C49<>\"\",Calculations!T49,\"\")","v":""}]
[45,{"$f":"IF(C50<>\"\",Calculations!T50,\"\")","v":""}]
[46,{"$f":"IF(C51<>\"\",Calculations!T51,\"\")","v":""}]
[47,{"$f":"IF(C52<>\"\",Calculations!T52,\"\")","v":""}]
[48,{"$f":"IF(C53<>\"\",Calculations!T53,\"\")","v":""}]
[49,{"$f":"IF(C54<>\"\",Calculations!T54,\"\")","v":""}]
[50,{"$f":"IF(C55<>\"\",Calculations!T55,\"\")","v":""}]
[51,{"$f":"IF(C56<>\"\",Calculations!T56,\"\")","v":""}]
[52,{"$f":"IF(C57<>\"\",Calculations!T57,\"\")","v":""}]
[53,{"$f":"IF(C58<>\"\",Calculations!T58,\"\")","v":""}]
[54,{"$f":"IF(C59<>\"\",Calculations!T59,\"\")","v":""}]
[55,{"$f":"IF(C60<>\"\",Calculations!T60,\"\")","v":""}]
[56,{"$f":"IF(C61<>\"\",Calculations!T61,\"\")","v":""}]
[57,{"$f":"IF(C62<>\"\",Calculations!T62,\"\")","v":""}]
[58,{"$f":"IF(C63<>\"\",Calculations!T63,\"\")","v":""}]
[59,{"$f":"IF(C64<>\"\",Calculations!T64,\"\")","v":""}]
[60,{"$f":"IF(C65<>\"\",Calculations!T65,\"\")","v":""}]
[61,{"$f":"IF(C66<>\"\",Calculations!T66,\"\")","v":""}]
[62,{"$f":"IF(C67<>\"\",Calculations!T67,\"\")","v":""}]
[63,{"$f":"IF(C68<>\"\",Calculations!T68,\"\")","v":""}]
[64,{"$f":"IF(C69<>\"\",Calculations!T69,\"\")","v":""}]
[65,{"$f":"IF(C70<>\"\",Calculations!T70,\"\")","v":""}]
[66,{"$f":"IF(C71<>\"\",Calculations!T71,\"\")","v":""}]
[{"$f":"A71+1","v":67},{"$f":"IF(C72<>\"\",Calculations!T72,\"\")","v":""}]
[68,{"$f":"IF(C73<>\"\",Calculations!T73,\"\")","v":""}]
[69,{"$f":"IF(C74<>\"\",Calculations!T74,\"\")","v":""}]
[70,{"$f":"IF(C75<>\"\",Calculations!T75,\"\")","v":""}]
[71,{"$f":"IF(C76<>\"\",Calculations!T76,\"\")","v":""}]
[72,{"$f":"IF(C77<>\"\",Calculations!T77,\"\")","v":""}]
[73,{"$f":"IF(C78<>\"\",Calculations!T78,\"\")","v":""}]
[74,{"$f":"IF(C79<>\"\",Calculations!T79,\"\")","v":""}]
[75,{"$f":"IF(C80<>\"\",Calculations!T80,\"\")","v":""}]
[76,{"$f":"IF(C81<>\"\",Calculations!T81,\"\")","v":""}]
[77,{"$f":"IF(C82<>\"\",Calculations!T82,\"\")","v":""}]
[78,{"$f":"IF(C83<>\"\",Calculations!T83,\"\")","v":""}]
[79,{"$f":"IF(C84<>\"\",Calculations!T84,\"\")","v":""}]
[80,{"$f":"IF(C85<>\"\",Calculations!T85,\"\")","v":""}]
[81,{"$f":"IF(C86<>\"\",Calculations!T86,\"\")","v":""}]
[82,{"$f":"IF(C87<>\"\",Calculations!T87,\"\")","v":""}]
[83,{"$f":"IF(C88<>\"\",Calculations!T88,\"\")","v":""}]
[84,{"$f":"IF(C89<>\"\",Calculations!T89,\"\")","v":""}]
[85,{"$f":"IF(C90<>\"\",Calculations!T90,\"\")","v":""}]
[86,{"$f":"IF(C91<>\"\",Calculations!T91,\"\")","v":""}]
[87,{"$f":"IF(C92<>\"\",Calculations!T92,\"\")","v":""}]
[88,{"$f":"IF(C93<>\"\",Calculations!T93,\"\")","v":""}]
[89,{"$f":"IF(C94<>\"\",Calculations!T94,\"\")","v":""}]
[90,{"$f":"IF(C95<>\"\",Calculations!T95,\"\")","v":""}]
[91,{"$f":"IF(C96<>\"\",Calculations!T96,\"\")","v":""}]
[92,{"$f":"IF(C97<>\"\",Calculations!T97,\"\")","v":""}]
[93,{"$f":"IF(C98<>\"\",Calculations!T98,\"\")","v":""}]
[94,{"$f":"IF(C99<>\"\",Calculations!T99,\"\")","v":""}]
[95,{"$f":"IF(C100<>\"\",Calculations!T100,\"\")","v":""}]
[96,{"$f":"IF(C101<>\"\",Calculations!T101,\"\")","v":""}]
[97,{"$f":"IF(C102<>\"\",Calculations!T102,\"\")","v":""}]
[98,{"$f":"IF(C103<>\"\",Calculations!T103,\"\")","v":""}]
[99,{"$f":"IF(C104<>\"\",Calculations!T104,\"\")","v":""}]
[100,{"$f":"IF(C105<>\"\",Calculations!T105,\"\")","v":""}]

{"sheet":"Calculations","index":2,"n_rows":154,"n_cols":20,"rows_kept":154,"cut":false,"hidden":true,"merged":[]}
[]
[]
[]
[]
[null,null,null,null,null,null,null,null,null,null,null,null,null,null,"3rd tier"]
[null,null,null,null,null,null,null,null,{"$f":"LINEST(D7:D13,E7:E13^COLUMN($A:$B),TRUE,TRUE)","v":0},0,0,null,{"$f":"'Obtain Comp. Strength'!$C6^2*Calculations!$I$6+Calculations!$J$6*'Obtain Comp. Strength'!$C6+Calculations!$K$6","v":0},null,{"$f":"LINEST(D7:D16,E7:E16^COLUMN($A:$C),TRUE,TRUE)","v":0},0,0,0,null,{"$f":"'Obtain Comp. Strength'!$C6^2*Calculations!$P$6+Calculations!$Q$6*'Obtain Comp. Strength'!$C6+Calculations!$R$6+Calculations!$O$6*'Obtain Comp. Strength'!$C6^3","v":0}]
[null,null,null,{"$f":"('Obtain constants'!C7)","v":0},{"$f":"('Obtain constants'!D7)","v":0},null,null,null,0,0,0,null,{"$f":"'Obtain Comp. Strength'!$C7^2*Calculations!$I$6+Calculations!$J$6*'Obtain Comp. Strength'!$C7+Calculations!$K$6","v":0},null,0,0,0,0,null,{"$f":"'Obtain Comp. Strength'!$C7^2*Calculations!$P$6+Calculations!$Q$6*'Obtain Comp. Strength'!$C7+Calculations!$R$6+Calculations!$O$6*'Obtain Comp. Strength'!$C7^3","v":0}]
[null,null,null,{"$f":"('Obtain constants'!C8)","v":0},{"$f":"('Obtain constants'!D8)","v":0},null,null,null,1,0,{"$error":"#N/A"},null,{"$f":"'Obtain Comp. Strength'!$C8^2*Calculations!$I$6+Calculations!$J$6*'Obtain Comp. Strength'!$C8+Calculations!$K$6","v":0},null,1,0,{"$error":"#N/A"},{"$error":"#N/A"},null,{"$f":"'Obtain Comp. Strength'!$C8^2*Calculations!$P$6+Calculations!$Q$6*'Obtain Comp. Strength'!$C8+Calculations!$R$6+Calculations!$O$6*'Obtain Comp. Strength'!$C8^3","v":0}]
[null,null,null,{"$f":"('Obtain constants'!C9)","v":0},{"$f":"('Obtain constants'!D9)","v":0},null,null,null,{"$error":"#NUM!"},6,{"$error":"#N/A"},null,{"$f":"'Obtain Comp. Strength'!$C9^2*Calculations!$I$6+Calculations!$J$6*'Obtain Comp. Strength'!$C9+Calculations!$K$6","v":0},null,{"$error":"#NUM!"},9,{"$error":"#N/A"},{"$error":"#N/A"},null,{"$f":"'Obtain Comp. Strength'!$C9^2*Calculations!$P$6+Calculations!$Q$6*'Obtain Comp. Strength'!$C9+Calculations!$R$6+Calculations!$O$6*'Obtain Comp. Strength'!$C9^3","v":0}]
[null,null,null,{"$f":"('Obtain constants'!C10)","v":0},{"$f":"('Obtain constants'!D10)","v":0},null,null,null,0,0,{"$error":"#N/A"},null,{"$f":"'Obtain Comp. Strength'!$C10^2*Calculations!$I$6+Calculations!$J$6*'Obtain Comp. Strength'!$C10+Calculations!$K$6","v":0},null,0,0,{"$error":"#N/A"},{"$error":"#N/A"},null,{"$f":"'Obtain Comp. Strength'!$C10^2*Calculations!$P$6+Calculations!$Q$6*'Obtain Comp. Strength'!$C10+Calculations!$R$6+Calculations!$O$6*'Obtain Comp. Strength'!$C10^3","v":0}]
[null,null,null,{"$f":"('Obtain constants'!C11)","v":0},{"$f":"('Obtain constants'!D11)","v":0},null,null,null,{"$f":"('Obtain constants'!E7)","v":0},{"$f":"('Obtain constants'!F7)","v":0},{"$f":"('Obtain constants'!G7)","v":0},null,{"$f":"'Obtain Comp. Strength'!$C11^2*Calculations!$I$6+Calculations!$J$6*'Obtain Comp. Strength'!$C11+Calculations!$K$6","v":0},null,null,null,null,null,null,{"$f":"'Obtain Comp. Strength'!$C11^2*Calculations!$P$6+Calculations!$Q$6*'Obtain Comp. Strength'!$C11+Calculations!$R$6+Calculations!$O$6*'Obtain Comp. Strength'!$C11^3","v":0}]
[null,null,null,{"$f":"('Obtain constants'!C12)","v":0},{"$f":"('Obtain constants'!D12)","v":0},null,null,null,{"$f":"('Obtain constants'!E8)","v":0},null,null,null,{"$f":"'Obtain Comp. Strength'!$C12^2*Calculations!$I$6+Calculations!$J$6*'Obtain Comp. Strength'!$C12+Calculations!$K$6","v":0},null,null,null,null,null,null,{"$f":"'Obtain Comp. Strength'!$C12^2*Calculations!$P$6+Calculations!$Q$6*'Obtain Comp. Strength'!$C12+Calculations!$R$6+Calculations!$O$6*'Obtain Comp. Strength'!$C12^3","v":0}]
[null,null,null,{"$f":"('Obtain constants'!C13)","v":0},{"$f":"('Obtain constants'!D13)","v":0},null,null,null,{"$f":"('Obtain constants'!E9)","v":0},null,null,null,{"$f":"'Obtain Comp. Strength'!$C13^2*Calculations!$I$6+Calculations!$J$6*'Obtain Comp. Strength'!$C13+Calculations!$K$6","v":0},null,null,null,null,null,null,{"$f":"'Obtain Comp. Strength'!$C13^2*Calculations!$P$6+Calculations!$Q$6*'Obtain Comp. Strength'!$C13+Calculations!$R$6+Calculations!$O$6*'Obtain Comp. Strength'!$C13^3","v":0}]
[null,null,null,{"$f":"('Obtain constants'!C14)","v":0},{"$f":"('Obtain constants'!D14)","v":0},null,null,null,{"$f":"('Obtain constants'!E10)","v":0},null,null,null,{"$f":"'Obtain Comp. Strength'!$C14^2*Calculations!$I$6+Calculations!$J$6*'Obtain Comp. Strength'!$C14+Calculations!$K$6","v":0},null,null,null,null,null,null,{"$f":"'Obtain Comp. Strength'!$C14^2*Calculations!$P$6+Calculations!$Q$6*'Obtain Comp. Strength'!$C14+Calculations!$R$6+Calculations!$O$6*'Obtain Comp. Strength'!$C14^3","v":0}]
[null,null,null,{"$f":"('Obtain constants'!C15)","v":0},{"$f":"('Obtain constants'!D15)","v":0},null,null,null,{"$f":"('Obtain constants'!E11)","v":0},null,null,null,{"$f":"'Obtain Comp. Strength'!$C15^2*Calculations!$I$6+Calculations!$J$6*'Obtain Comp. Strength'!$C15+Calculations!$K$6","v":0},null,null,null,null,null,null,{"$f":"'Obtain Comp. Strength'!$C15^2*Calculations!$P$6+Calculations!$Q$6*'Obtain Comp. Strength'!$C15+Calculations!$R$6+Calculations!$O$6*'Obtain Comp. Strength'!$C15^3","v":0}]
[null,null,null,{"$f":"('Obtain constants'!C16)","v":0},{"$f":"('Obtain constants'!D16)","v":0},null,null,null,{"$f":"('Obtain constants'!E12)","v":0},null,null,null,{"$f":"'Obtain Comp. Strength'!$C16^2*Calculations!$I$6+Calculations!$J$6*'Obtain Comp. Strength'!$C16+Calculations!$K$6","v":0},null,null,null,null,null,null,{"$f":"'Obtain Comp. Strength'!$C16^2*Calculations!$P$6+Calculations!$Q$6*'Obtain Comp. Strength'!$C16+Calculations!$R$6+Calculations!$O$6*'Obtain Comp. Strength'!$C16^3","v":0}]
[null,null,null,{"$f":"('Obtain constants'!C17)","v":0},{"$f":"('Obtain constants'!D17)","v":0},null,null,null,{"$f":"('Obtain constants'!E13)","v":0},null,null,null,{"$f":"'Obtain Comp. Strength'!$C17^2*Calculations!$I$6+Calculations!$J$6*'Obtain Comp. Strength'!$C17+Calculations!$K$6","v":0},null,null,null,null,null,null,{"$f":"'Obtain Comp. Strength'!$C17^2*Calculations!$P$6+Calculations!$Q$6*'Obtain Comp. Strength'!$C17+Calculations!$R$6+Calculations!$O$6*'Obtain Comp. Strength'!$C17^3","v":0}]
[null,null,null,null,null,null,null,null,{"$f":"('Obtain constants'!E14)","v":0},null,null,null,{"$f":"'Obtain Comp. Strength'!$C18^2*Calculations!$I$6+Calculations!$J$6*'Obtain Comp. Strength'!$C18+Calculations!$K$6","v":0},null,null,null,null,null,null,{"$f":"'Obtain Comp. Strength'!$C18^2*Calculations!$P$6+Calculations!$Q$6*'Obtain Comp. Strength'!$C18+Calculations!$R$6+Calculations!$O$6*'Obtain Comp. Strength'!$C18^3","v":0}]
[null,null,null,null,null,null,null,null,{"$f":"('Obtain constants'!E15)","v":0},null,null,null,{"$f":"'Obtain Comp. Strength'!$C19^2*Calculations!$I$6+Calculations!$J$6*'Obtain Comp. Strength'!$C19+Calculations!$K$6","v":0},null,null,null,null,null,null,{"$f":"'Obtain Comp. Strength'!$C19^2*Calculations!$P$6+Calculations!$Q$6*'Obtain Comp. Strength'!$C19+Calculations!$R$6+Calculations!$O$6*'Obtain Comp. Strength'!$C19^3","v":0}]
[null,null,null,null,null,null,null,null,{"$f":"('Obtain constants'!E16)","v":0},null,null,null,{"$f":"'Obtain Comp. Strength'!$C20^2*Calculations!$I$6+Calculations!$J$6*'Obtain Comp. Strength'!$C20+Calculations!$K$6","v":0},null,null,null,null,null,null,{"$f":"'Obtain Comp. Strength'!$C20^2*Calculations!$P$6+Calculations!$Q$6*'Obtain Comp. Strength'!$C20+Calculations!$R$6+Calculations!$O$6*'Obtain Comp. Strength'!$C20^3","v":0}]
[null,null,null,null,null,null,null,null,{"$f":"('Obtain constants'!E17)","v":0},null,null,null,{"$f":"'Obtain Comp. Strength'!$C21^2*Calculations!$I$6+Calculations!$J$6*'Obtain Comp. Strength'!$C21+Calculations!$K$6","v":0},null,null,null,null,null,null,{"$f":"'Obtain Comp. Strength'!$C21^2*Calculations!$P$6+Calculations!$Q$6*'Obtain Comp. Strength'!$C21+Calculations!$R$6+Calculations!$O$6*'Obtain Comp. Strength'!$C21^3","v":0}]
[null,null,null,null,null,null,null,null,{"$f":"('Obtain constants'!E18)","v":0},null,null,null,{"$f":"'Obtain Comp. Strength'!$C22^2*Calculations!$I$6+Calculations!$J$6*'Obtain Comp. Strength'!$C22+Calculations!$K$6","v":0},null,null,null,null,null,null,{"$f":"'Obtain Comp. Strength'!$C22^2*Calculations!$P$6+Calculations!$Q$6*'Obtain Comp. Strength'!$C22+Calculations!$R$6+Calculations!$O$6*'Obtain Comp. Strength'!$C22^3","v":0}]
[null,null,null,null,null,null,null,null,{"$f":"('Obtain constants'!E19)","v":0},null,null,null,{"$f":"'Obtain Comp. Strength'!$C23^2*Calculations!$I$6+Calculations!$J$6*'Obtain Comp. Strength'!$C23+Calculations!$K$6","v":0},null,null,null,null,null,null,{"$f":"'Obtain Comp. Strength'!$C23^2*Calculations!$P$6+Calculations!$Q$6*'Obtain Comp. Strength'!$C23+Calculations!$R$6+Calculations!$O$6*'Obtain Comp. Strength'!$C23^3","v":0}]
[null,null,null,null,null,null,null,null,{"$f":"+LINEST(D7:D22,E7:E22^COLUMN($A:$B),TRUE,TRUE)","v":{"$error":"#VALUE!"}},{"$error":"#VALUE!"},{"$error":"#VALUE!"},null,{"$f":"'Obtain Comp. Strength'!$C24^2*Calculations!$I$6+Calculations!$J$6*'Obtain Comp. Strength'!$C24+Calculations!$K$6","v":0},null,null,null,null,null,null,{"$f":"'Obtain Comp. Strength'!$C24^2*Calculations!$P$6+Calculations!$Q$6*'Obtain Comp. Strength'!$C24+Calculations!$R$6+Calculations!$O$6*'Obtain Comp. Strength'!$C24^3","v":0}]
[null,null,null,null,null,null,null,null,{"$error":"#VALUE!"},{"$error":"#VALUE!"},{"$error":"#VALUE!"},null,{"$f":"'Obtain Comp. Strength'!$C25^2*Calculations!$I$6+Calculations!$J$6*'Obtain Comp. Strength'!$C25+Calculations!$K$6","v":0},null,null,null,null,null,null,{"$f":"'Obtain Comp. Strength'!$C25^2*Calculations!$P$6+Calculations!$Q$6*'Obtain Comp. Strength'!$C25+Calculations!$R$6+Calculations!$O$6*'Obtain Comp. Strength'!$C25^3","v":0}]
[null,null,null,null,null,null,null,null,{"$error":"#VALUE!"},{"$error":"#VALUE!"},{"$error":"#VALUE!"},null,{"$f":"'Obtain Comp. Strength'!$C26^2*Calculations!$I$6+Calculations!$J$6*'Obtain Comp. Strength'!$C26+Calculations!$K$6","v":0},null,null,null,null,null,null,{"$f":"'Obtain Comp. Strength'!$C26^2*Calculations!$P$6+Calculations!$Q$6*'Obtain Comp. Strength'!$C26+Calculations!$R$6+Calculations!$O$6*'Obtain Comp. Strength'!$C26^3","v":0}]
[null,null,null,null,null,null,null,null,{"$error":"#VALUE!"},{"$error":"#VALUE!"},{"$error":"#VALUE!"},null,{"$f":"'Obtain Comp. Strength'!$C27^2*Calculations!$I$6+Calculations!$J$6*'Obtain Comp. Strength'!$C27+Calculations!$K$6","v":0},null,null,null,null,null,null,{"$f":"'Obtain Comp. Strength'!$C27^2*Calculations!$P$6+Calculations!$Q$6*'Obtain Comp. Strength'!$C27+Calculations!$R$6+Calculations!$O$6*'Obtain Comp. Strength'!$C27^3","v":0}]
[null,null,null,{"$f":"COUNT(D7:D26)","v":11},null,null,null,null,{"$error":"#VALUE!"},{"$error":"#VALUE!"},{"$error":"#VALUE!"},null,{"$f":"'Obtain Comp. Strength'!$C28^2*Calculations!$I$6+Calculations!$J$6*'Obtain Comp. Strength'!$C28+Calculations!$K$6","v":0},null,null,null,null,null,null,{"$f":"'Obtain Comp. Strength'!$C28^2*Calculations!$P$6+Calculations!$Q$6*'Obtain Comp. Strength'!$C28+Calculations!$R$6+Calculations!$O$6*'Obtain Comp. Strength'!$C28^3","v":0}]
[null,null,null,null,null,null,null,null,null,null,null,null,{"$f":"'Obtain Comp. Strength'!$C29^2*Calculations!$I$6+Calculations!$J$6*'Obtain Comp. Strength'!$C29+Calculations!$K$6","v":0},null,null,null,null,null,null,{"$f":"'Obtain Comp. Strength'!$C29^2*Calculations!$P$6+Calculations!$Q$6*'Obtain Comp. Strength'!$C29+Calculations!$R$6+Calculations!$O$6*'Obtain Comp. Strength'!$C29^3","v":0}]
[null,null,null,null,null,null,null,null,null,null,null,null,{"$f":"'Obtain Comp. Strength'!$C30^2*Calculations!$I$6+Calculations!$J$6*'Obtain Comp. Strength'!$C30+Calculations!$K$6","v":0},null,null,null,null,null,null,{"$f":"'Obtain Comp. Strength'!$C30^2*Calculations!$P$6+Calculations!$Q$6*'Obtain Comp. Strength'!$C30+Calculations!$R$6+Calculations!$O$6*'Obtain Comp. Strength'!$C30^3","v":0}]
[null,null,null,{"$f":"+IF(Calculations!$I$8<Calculations!$O$8,Calculations!O6,\"\")","v":""},null,null,null,null,null,null,null,null,{"$f":"'Obtain Comp. Strength'!$C31^2*Calculations!$I$6+Calculations!$J$6*'Obtain Comp. Strength'!$C31+Calculations!$K$6","v":0},null,null,null,null,null,null,{"$f":"'Obtain Comp. Strength'!$C31^2*Calculations!$P$6+Calculations!$Q$6*'Obtain Comp. Strength'!$C31+Calculations!$R$6+Calculations!$O$6*'Obtain Comp. Strength'!$C31^3","v":0}]
[null,null,null,{"$f":"+IF(Calculations!$I$8<Calculations!$O$8,Calculations!P6,\"\")","v":""},null,null,null,null,null,null,null,null,{"$f":"'Obtain Comp. Strength'!$C32^2*Calculations!$I$6+Calculations!$J$6*'Obtain Comp. Strength'!$C32+Calculations!$K$6","v":0},null,null,null,null,null,null,{"$f":"'Obtain Comp. Strength'!$C32^2*Calculations!$P$6+Calculations!$Q$6*'Obtain Comp. Strength'!$C32+Calculations!$R$6+Calculations!$O$6*'Obtain Comp. Strength'!$C32^3","v":0}]
[null,null,null,{"$f":"+IF(Calculations!$I$8<Calculations!$O$8,Calculations!Q6,\"\")","v":""},null,null,null,null,null,null,null,null,{"$f":"'Obtain Comp. Strength'!$C33^2*Calculations!$I$6+Calculations!$J$6*'Obtain Comp. Strength'!$C33+Calculations!$K$6","v":0},null,null,null,null,null,null,{"$f":"'Obtain Comp. Strength'!$C33^2*Calculations!$P$6+Calculations!$Q$6*'Obtain Comp. Strength'!$C33+Calculations!$R$6+Calculations!$O$6*'Obtain Comp. Strength'!$C33^3","v":0}]
[null,null,null,{"$f":"+IF(Calculations!$I$8<Calculations!$O$8,Calculations!R6,\"\")","v":""},null,null,null,null,null,null,null,null,{"$f":"'Obtain Comp. Strength'!$C34^2*Calculations!$I$6+Calculations!$J$6*'Obtain Comp. Strength'!$C34+Calculations!$K$6","v":0},null,null,null,null,null,null,{"$f":"'Obtain Comp. Strength'!$C34^2*Calculations!$P$6+Calculations!$Q$6*'Obtain Comp. Strength'!$C34+Calculations!$R$6+Calculations!$O$6*'Obtain Comp. Strength'!$C34^3","v":0}]
[null,null,null,null,null,null,null,null,null,null,null,null,{"$f":"'Obtain Comp. Strength'!$C35^2*Calculations!$I$6+Calculations!$J$6*'Obtain Comp. Strength'!$C35+Calculations!$K$6","v":0},null,null,null,null,null,null,{"$f":"'Obtain Comp. Strength'!$C35^2*Calculations!$P$6+Calculations!$Q$6*'Obtain Comp. Strength'!$C35+Calculations!$R$6+Calculations!$O$6*'Obtain Comp. Strength'!$C35^3","v":0}]
[null,null,null,null,null,null,null,null,null,null,null,null,{"$f":"'Obtain Comp. Strength'!$C36^2*Calculations!$I$6+Calculations!$J$6*'Obtain Comp. Strength'!$C36+Calculations!$K$6","v":0},null,null,null,null,null,null,{"$f":"'Obtain Comp. Strength'!$C36^2*Calculations!$P$6+Calculations!$Q$6*'Obtain Comp. Strength'!$C36+Calculations!$R$6+Calculations!$O$6*'Obtain Comp. Strength'!$C36^3","v":0}]
[null,null,null,null,null,null,null,null,null,null,null,null,{"$f":"'Obtain Comp. Strength'!$C37^2*Calculations!$I$6+Calculations!$J$6*'Obtain Comp. Strength'!$C37+Calculations!$K$6","v":0},null,null,null,null,null,null,{"$f":"'Obtain Comp. Strength'!$C37^2*Calculations!$P$6+Calculations!$Q$6*'Obtain Comp. Strength'!$C37+Calculations!$R$6+Calculations!$O$6*'Obtain Comp. Strength'!$C37^3","v":0}]
[null,null,null,null,null,null,null,null,null,null,null,null,{"$f":"'Obtain Comp. Strength'!$C38^2*Calculations!$I$6+Calculations!$J$6*'Obtain Comp. Strength'!$C38+Calculations!$K$6","v":0},null,null,null,null,null,null,{"$f":"'Obtain Comp. Strength'!$C38^2*Calculations!$P$6+Calculations!$Q$6*'Obtain Comp. Strength'!$C38+Calculations!$R$6+Calculations!$O$6*'Obtain Comp. Strength'!$C38^3","v":0}]
[null,null,null,null,null,null,null,null,null,null,null,null,{"$f":"'Obtain Comp. Strength'!$C39^2*Calculations!$I$6+Calculations!$J$6*'Obtain Comp. Strength'!$C39+Calculations!$K$6","v":0},null,null,null,null,null,null,{"$f":"'Obtain Comp. Strength'!$C39^2*Calculations!$P$6+Calculations!$Q$6*'Obtain Comp. Strength'!$C39+Calculations!$R$6+Calculations!$O$6*'Obtain Comp. Strength'!$C39^3","v":0}]
[null,null,null,null,null,null,null,null,null,null,null,null,{"$f":"'Obtain Comp. Strength'!$C40^2*Calculations!$I$6+Calculations!$J$6*'Obtain Comp. Strength'!$C40+Calculations!$K$6","v":0},null,null,null,null,null,null,{"$f":"'Obtain Comp. Strength'!$C40^2*Calculations!$P$6+Calculations!$Q$6*'Obtain Comp. Strength'!$C40+Calculations!$R$6+Calculations!$O$6*'Obtain Comp. Strength'!$C40^3","v":0}]
[null,null,null,null,null,null,null,null,null,null,null,null,{"$f":"'Obtain Comp. Strength'!$C41^2*Calculations!$I$6+Calculations!$J$6*'Obtain Comp. Strength'!$C41+Calculations!$K$6","v":0},null,null,null,null,null,null,{"$f":"'Obtain Comp. Strength'!$C41^2*Calculations!$P$6+Calculations!$Q$6*'Obtain Comp. Strength'!$C41+Calculations!$R$6+Calculations!$O$6*'Obtain Comp. Strength'!$C41^3","v":0}]
[null,null,null,null,null,null,null,null,null,null,null,null,{"$f":"'Obtain Comp. Strength'!$C42^2*Calculations!$I$6+Calculations!$J$6*'Obtain Comp. Strength'!$C42+Calculations!$K$6","v":0},null,null,null,null,null,null,{"$f":"'Obtain Comp. Strength'!$C42^2*Calculations!$P$6+Calculations!$Q$6*'Obtain Comp. Strength'!$C42+Calculations!$R$6+Calculations!$O$6*'Obtain Comp. Strength'!$C42^3","v":0}]
[null,null,null,null,null,null,null,null,null,null,null,null,{"$f":"'Obtain Comp. Strength'!$C43^2*Calculations!$I$6+Calculations!$J$6*'Obtain Comp. Strength'!$C43+Calculations!$K$6","v":0},null,null,null,null,null,null,{"$f":"'Obtain Comp. Strength'!$C43^2*Calculations!$P$6+Calculations!$Q$6*'Obtain Comp. Strength'!$C43+Calculations!$R$6+Calculations!$O$6*'Obtain Comp. Strength'!$C43^3","v":0}]
[null,null,null,null,null,null,null,null,null,null,null,null,{"$f":"'Obtain Comp. Strength'!$C44^2*Calculations!$I$6+Calculations!$J$6*'Obtain Comp. Strength'!$C44+Calculations!$K$6","v":0},null,null,null,null,null,null,{"$f":"'Obtain Comp. Strength'!$C44^2*Calculations!$P$6+Calculations!$Q$6*'Obtain Comp. Strength'!$C44+Calculations!$R$6+Calculations!$O$6*'Obtain Comp. Strength'!$C44^3","v":0}]
[null,null,null,null,null,null,null,null,null,null,null,null,{"$f":"'Obtain Comp. Strength'!$C45^2*Calculations!$I$6+Calculations!$J$6*'Obtain Comp. Strength'!$C45+Calculations!$K$6","v":0},null,null,null,null,null,null,{"$f":"'Obtain Comp. Strength'!$C45^2*Calculations!$P$6+Calculations!$Q$6*'Obtain Comp. Strength'!$C45+Calculations!$R$6+Calculations!$O$6*'Obtain Comp. Strength'!$C45^3","v":0}]
[null,null,null,null,null,null,null,null,null,null,null,null,{"$f":"'Obtain Comp. Strength'!$C46^2*Calculations!$I$6+Calculations!$J$6*'Obtain Comp. Strength'!$C46+Calculations!$K$6","v":0},null,null,null,null,null,null,{"$f":"'Obtain Comp. Strength'!$C46^2*Calculations!$P$6+Calculations!$Q$6*'Obtain Comp. Strength'!$C46+Calculations!$R$6+Calculations!$O$6*'Obtain Comp. Strength'!$C46^3","v":0}]
[null,null,null,null,null,null,null,null,null,null,null,null,{"$f":"'Obtain Comp. Strength'!$C47^2*Calculations!$I$6+Calculations!$J$6*'Obtain Comp. Strength'!$C47+Calculations!$K$6","v":0},null,null,null,null,null,null,{"$f":"'Obtain Comp. Strength'!$C47^2*Calculations!$P$6+Calculations!$Q$6*'Obtain Comp. Strength'!$C47+Calculations!$R$6+Calculations!$O$6*'Obtain Comp. Strength'!$C47^3","v":0}]
[null,null,null,null,null,null,null,null,null,null,null,null,{"$f":"'Obtain Comp. Strength'!$C48^2*Calculations!$I$6+Calculations!$J$6*'Obtain Comp. Strength'!$C48+Calculations!$K$6","v":0},null,null,null,null,null,null,{"$f":"'Obtain Comp. Strength'!$C48^2*Calculations!$P$6+Calculations!$Q$6*'Obtain Comp. Strength'!$C48+Calculations!$R$6+Calculations!$O$6*'Obtain Comp. Strength'!$C48^3","v":0}]
[null,null,null,null,null,null,null,null,null,null,null,null,{"$f":"'Obtain Comp. Strength'!$C49^2*Calculations!$I$6+Calculations!$J$6*'Obtain Comp. Strength'!$C49+Calculations!$K$6","v":0},null,null,null,null,null,null,{"$f":"'Obtain Comp. Strength'!$C49^2*Calculations!$P$6+Calculations!$Q$6*'Obtain Comp. Strength'!$C49+Calculations!$R$6+Calculations!$O$6*'Obtain Comp. Strength'!$C49^3","v":0}]
[null,null,null,null,null,null,null,null,null,null,null,null,{"$f":"'Obtain Comp. Strength'!$C50^2*Calculations!$I$6+Calculations!$J$6*'Obtain Comp. Strength'!$C50+Calculations!$K$6","v":0},null,null,null,null,null,null,{"$f":"'Obtain Comp. Strength'!$C50^2*Calculations!$P$6+Calculations!$Q$6*'Obtain Comp. Strength'!$C50+Calculations!$R$6+Calculations!$O$6*'Obtain Comp. Strength'!$C50^3","v":0}]
[null,null,null,null,null,null,null,null,null,null,null,null,{"$f":"'Obtain Comp. Strength'!$C51^2*Calculations!$I$6+Calculations!$J$6*'Obtain Comp. Strength'!$C51+Calculations!$K$6","v":0},null,null,null,null,null,null,{"$f":"'Obtain Comp. Strength'!$C51^2*Calculations!$P$6+Calculations!$Q$6*'Obtain Comp. Strength'!$C51+Calculations!$R$6+Calculations!$O$6*'Obtain Comp. Strength'!$C51^3","v":0}]
[null,null,null,null,null,null,null,null,null,null,null,null,{"$f":"'Obtain Comp. Strength'!$C52^2*Calculations!$I$6+Calculations!$J$6*'Obtain Comp. Strength'!$C52+Calculations!$K$6","v":0},null,null,null,null,null,null,{"$f":"'Obtain Comp. Strength'!$C52^2*Calculations!$P$6+Calculations!$Q$6*'Obtain Comp. Strength'!$C52+Calculations!$R$6+Calculations!$O$6*'Obtain Comp. Strength'!$C52^3","v":0}]
[null,null,null,null,null,null,null,null,null,null,null,null,{"$f":"'Obtain Comp. Strength'!$C53^2*Calculations!$I$6+Calculations!$J$6*'Obtain Comp. Strength'!$C53+Calculations!$K$6","v":0},null,null,null,null,null,null,{"$f":"'Obtain Comp. Strength'!$C53^2*Calculations!$P$6+Calculations!$Q$6*'Obtain Comp. Strength'!$C53+Calculations!$R$6+Calculations!$O$6*'Obtain Comp. Strength'!$C53^3","v":0}]
[null,null,null,null,null,null,null,null,null,null,null,null,{"$f":"'Obtain Comp. Strength'!$C54^2*Calculations!$I$6+Calculations!$J$6*'Obtain Comp. Strength'!$C54+Calculations!$K$6","v":0},null,null,null,null,null,null,{"$f":"'Obtain Comp. Strength'!$C54^2*Calculations!$P$6+Calculations!$Q$6*'Obtain Comp. Strength'!$C54+Calculations!$R$6+Calculations!$O$6*'Obtain Comp. Strength'!$C54^3","v":0}]
[null,null,null,null,null,null,null,null,null,null,null,null,{"$f":"'Obtain Comp. Strength'!$C55^2*Calculations!$I$6+Calculations!$J$6*'Obtain Comp. Strength'!$C55+Calculations!$K$6","v":0},null,null,null,null,null,null,{"$f":"'Obtain Comp. Strength'!$C55^2*Calculations!$P$6+Calculations!$Q$6*'Obtain Comp. Strength'!$C55+Calculations!$R$6+Calculations!$O$6*'Obtain Comp. Strength'!$C55^3","v":0}]
[null,null,null,null,null,null,null,null,null,null,null,null,{"$f":"'Obtain Comp. Strength'!$C56^2*Calculations!$I$6+Calculations!$J$6*'Obtain Comp. Strength'!$C56+Calculations!$K$6","v":0},null,null,null,null,null,null,{"$f":"'Obtain Comp. Strength'!$C56^2*Calculations!$P$6+Calculations!$Q$6*'Obtain Comp. Strength'!$C56+Calculations!$R$6+Calculations!$O$6*'Obtain Comp. Strength'!$C56^3","v":0}]
[null,null,null,null,null,null,null,null,null,null,null,null,{"$f":"'Obtain Comp. Strength'!$C57^2*Calculations!$I$6+Calculations!$J$6*'Obtain Comp. Strength'!$C57+Calculations!$K$6","v":0},null,null,null,null,null,null,{"$f":"'Obtain Comp. Strength'!$C57^2*Calculations!$P$6+Calculations!$Q$6*'Obtain Comp. Strength'!$C57+Calculations!$R$6+Calculations!$O$6*'Obtain Comp. Strength'!$C57^3","v":0}]
[null,null,null,null,null,null,null,null,null,null,null,null,{"$f":"'Obtain Comp. Strength'!$C58^2*Calculations!$I$6+Calculations!$J$6*'Obtain Comp. Strength'!$C58+Calculations!$K$6","v":0},null,null,null,null,null,null,{"$f":"'Obtain Comp. Strength'!$C58^2*Calculations!$P$6+Calculations!$Q$6*'Obtain Comp. Strength'!$C58+Calculations!$R$6+Calculations!$O$6*'Obtain Comp. Strength'!$C58^3","v":0}]
[null,null,null,null,null,null,null,null,null,null,null,null,{"$f":"'Obtain Comp. Strength'!$C59^2*Calculations!$I$6+Calculations!$J$6*'Obtain Comp. Strength'!$C59+Calculations!$K$6","v":0},null,null,null,null,null,null,{"$f":"'Obtain Comp. Strength'!$C59^2*Calculations!$P$6+Calculations!$Q$6*'Obtain Comp. Strength'!$C59+Calculations!$R$6+Calculations!$O$6*'Obtain Comp. Strength'!$C59^3","v":0}]
[null,null,null,null,null,null,null,null,null,null,null,null,{"$f":"'Obtain Comp. Strength'!$C60^2*Calculations!$I$6+Calculations!$J$6*'Obtain Comp. Strength'!$C60+Calculations!$K$6","v":0},null,null,null,null,null,null,{"$f":"'Obtain Comp. Strength'!$C60^2*Calculations!$P$6+Calculations!$Q$6*'Obtain Comp. Strength'!$C60+Calculations!$R$6+Calculations!$O$6*'Obtain Comp. Strength'!$C60^3","v":0}]
[null,null,null,null,null,null,null,null,null,null,null,null,{"$f":"'Obtain Comp. Strength'!$C61^2*Calculations!$I$6+Calculations!$J$6*'Obtain Comp. Strength'!$C61+Calculations!$K$6","v":0},null,null,null,null,null,null,{"$f":"'Obtain Comp. Strength'!$C61^2*Calculations!$P$6+Calculations!$Q$6*'Obtain Comp. Strength'!$C61+Calculations!$R$6+Calculations!$O$6*'Obtain Comp. Strength'!$C61^3","v":0}]
[null,null,null,null,null,null,null,null,null,null,null,null,{"$f":"'Obtain Comp. Strength'!$C62^2*Calculations!$I$6+Calculations!$J$6*'Obtain Comp. Strength'!$C62+Calculations!$K$6","v":0},null,null,null,null,null,null,{"$f":"'Obtain Comp. Strength'!$C62^2*Calculations!$P$6+Calculations!$Q$6*'Obtain Comp. Strength'!$C62+Calculations!$R$6+Calculations!$O$6*'Obtain Comp. Strength'!$C62^3","v":0}]
[null,null,null,null,null,null,null,null,null,null,null,null,{"$f":"'Obtain Comp. Strength'!$C63^2*Calculations!$I$6+Calculations!$J$6*'Obtain Comp. Strength'!$C63+Calculations!$K$6","v":0},null,null,null,null,null,null,{"$f":"'Obtain Comp. Strength'!$C63^2*Calculations!$P$6+Calculations!$Q$6*'Obtain Comp. Strength'!$C63+Calculations!$R$6+Calculations!$O$6*'Obtain Comp. Strength'!$C63^3","v":0}]
[null,null,null,null,null,null,null,null,null,null,null,null,{"$f":"'Obtain Comp. Strength'!$C64^2*Calculations!$I$6+Calculations!$J$6*'Obtain Comp. Strength'!$C64+Calculations!$K$6","v":0},null,null,null,null,null,null,{"$f":"'Obtain Comp. Strength'!$C64^2*Calculations!$P$6+Calculations!$Q$6*'Obtain Comp. Strength'!$C64+Calculations!$R$6+Calculations!$O$6*'Obtain Comp. Strength'!$C64^3","v":0}]
[null,null,null,null,null,null,null,null,null,null,null,null,{"$f":"'Obtain Comp. Strength'!$C65^2*Calculations!$I$6+Calculations!$J$6*'Obtain Comp. Strength'!$C65+Calculations!$K$6","v":0},null,null,null,null,null,null,{"$f":"'Obtain Comp. Strength'!$C65^2*Calculations!$P$6+Calculations!$Q$6*'Obtain Comp. Strength'!$C65+Calculations!$R$6+Calculations!$O$6*'Obtain Comp. Strength'!$C65^3","v":0}]
[null,null,null,null,null,null,null,null,null,null,null,null,{"$f":"'Obtain Comp. Strength'!$C66^2*Calculations!$I$6+Calculations!$J$6*'Obtain Comp. Strength'!$C66+Calculations!$K$6","v":0},null,null,null,null,null,null,{"$f":"'Obtain Comp. Strength'!$C66^2*Calculations!$P$6+Calculations!$Q$6*'Obtain Comp. Strength'!$C66+Calculations!$R$6+Calculations!$O$6*'Obtain Comp. Strength'!$C66^3","v":0}]
[null,null,null,null,null,null,null,null,null,null,null,null,{"$f":"'Obtain Comp. Strength'!$C67^2*Calculations!$I$6+Calculations!$J$6*'Obtain Comp. Strength'!$C67+Calculations!$K$6","v":0},null,null,null,null,null,null,{"$f":"'Obtain Comp. Strength'!$C67^2*Calculations!$P$6+Calculations!$Q$6*'Obtain Comp. Strength'!$C67+Calculations!$R$6+Calculations!$O$6*'Obtain Comp. Strength'!$C67^3","v":0}]
[null,null,null,null,null,null,null,null,null,null,null,null,{"$f":"'Obtain Comp. Strength'!$C68^2*Calculations!$I$6+Calculations!$J$6*'Obtain Comp. Strength'!$C68+Calculations!$K$6","v":0},null,null,null,null,null,null,{"$f":"'Obtain Comp. Strength'!$C68^2*Calculations!$P$6+Calculations!$Q$6*'Obtain Comp. Strength'!$C68+Calculations!$R$6+Calculations!$O$6*'Obtain Comp. Strength'!$C68^3","v":0}]
[null,null,null,null,null,null,null,null,null,null,null,null,{"$f":"'Obtain Comp. Strength'!$C69^2*Calculations!$I$6+Calculations!$J$6*'Obtain Comp. Strength'!$C69+Calculations!$K$6","v":0},null,null,null,null,null,null,{"$f":"'Obtain Comp. Strength'!$C69^2*Calculations!$P$6+Calculations!$Q$6*'Obtain Comp. Strength'!$C69+Calculations!$R$6+Calculations!$O$6*'Obtain Comp. Strength'!$C69^3","v":0}]
[null,null,null,null,null,null,null,null,null,null,null,null,{"$f":"'Obtain Comp. Strength'!$C70^2*Calculations!$I$6+Calculations!$J$6*'Obtain Comp. Strength'!$C70+Calculations!$K$6","v":0},null,null,null,null,null,null,{"$f":"'Obtain Comp. Strength'!$C70^2*Calculations!$P$6+Calculations!$Q$6*'Obtain Comp. Strength'!$C70+Calculations!$R$6+Calculations!$O$6*'Obtain Comp. Strength'!$C70^3","v":0}]
[null,null,null,null,null,null,null,null,null,null,null,null,{"$f":"'Obtain Comp. Strength'!$C71^2*Calculations!$I$6+Calculations!$J$6*'Obtain Comp. Strength'!$C71+Calculations!$K$6","v":0},null,null,null,null,null,null,{"$f":"'Obtain Comp. Strength'!$C71^2*Calculations!$P$6+Calculations!$Q$6*'Obtain Comp. Strength'!$C71+Calculations!$R$6+Calculations!$O$6*'Obtain Comp. Strength'!$C71^3","v":0}]
[null,null,null,null,null,null,null,null,null,null,null,null,{"$f":"'Obtain Comp. Strength'!$C72^2*Calculations!$I$6+Calculations!$J$6*'Obtain Comp. Strength'!$C72+Calculations!$K$6","v":0},null,null,null,null,null,null,{"$f":"'Obtain Comp. Strength'!$C72^2*Calculations!$P$6+Calculations!$Q$6*'Obtain Comp. Strength'!$C72+Calculations!$R$6+Calculations!$O$6*'Obtain Comp. Strength'!$C72^3","v":0}]
[null,null,null,null,null,null,null,null,null,null,null,null,{"$f":"'Obtain Comp. Strength'!$C73^2*Calculations!$I$6+Calculations!$J$6*'Obtain Comp. Strength'!$C73+Calculations!$K$6","v":0},null,null,null,null,null,null,{"$f":"'Obtain Comp. Strength'!$C73^2*Calculations!$P$6+Calculations!$Q$6*'Obtain Comp. Strength'!$C73+Calculations!$R$6+Calculations!$O$6*'Obtain Comp. Strength'!$C73^3","v":0}]
[null,null,null,null,null,null,null,null,null,null,null,null,{"$f":"'Obtain Comp. Strength'!$C74^2*Calculations!$I$6+Calculations!$J$6*'Obtain Comp. Strength'!$C74+Calculations!$K$6","v":0},null,null,null,null,null,null,{"$f":"'Obtain Comp. Strength'!$C74^2*Calculations!$P$6+Calculations!$Q$6*'Obtain Comp. Strength'!$C74+Calculations!$R$6+Calculations!$O$6*'Obtain Comp. Strength'!$C74^3","v":0}]
[null,null,null,null,null,null,null,null,null,null,null,null,{"$f":"'Obtain Comp. Strength'!$C75^2*Calculations!$I$6+Calculations!$J$6*'Obtain Comp. Strength'!$C75+Calculations!$K$6","v":0},null,null,null,null,null,null,{"$f":"'Obtain Comp. Strength'!$C75^2*Calculations!$P$6+Calculations!$Q$6*'Obtain Comp. Strength'!$C75+Calculations!$R$6+Calculations!$O$6*'Obtain Comp. Strength'!$C75^3","v":0}]
[null,null,null,null,null,null,null,null,null,null,null,null,{"$f":"'Obtain Comp. Strength'!$C76^2*Calculations!$I$6+Calculations!$J$6*'Obtain Comp. Strength'!$C76+Calculations!$K$6","v":0},null,null,null,null,null,null,{"$f":"'Obtain Comp. Strength'!$C76^2*Calculations!$P$6+Calculations!$Q$6*'Obtain Comp. Strength'!$C76+Calculations!$R$6+Calculations!$O$6*'Obtain Comp. Strength'!$C76^3","v":0}]
[null,null,null,null,null,null,null,null,null,null,null,null,{"$f":"'Obtain Comp. Strength'!$C77^2*Calculations!$I$6+Calculations!$J$6*'Obtain Comp. Strength'!$C77+Calculations!$K$6","v":0},null,null,null,null,null,null,{"$f":"'Obtain Comp. Strength'!$C77^2*Calculations!$P$6+Calculations!$Q$6*'Obtain Comp. Strength'!$C77+Calculations!$R$6+Calculations!$O$6*'Obtain Comp. Strength'!$C77^3","v":0}]
[null,null,null,null,null,null,null,null,null,null,null,null,{"$f":"'Obtain Comp. Strength'!$C78^2*Calculations!$I$6+Calculations!$J$6*'Obtain Comp. Strength'!$C78+Calculations!$K$6","v":0},null,null,null,null,null,null,{"$f":"'Obtain Comp. Strength'!$C78^2*Calculations!$P$6+Calculations!$Q$6*'Obtain Comp. Strength'!$C78+Calculations!$R$6+Calculations!$O$6*'Obtain Comp. Strength'!$C78^3","v":0}]
[null,null,null,null,null,null,null,null,null,null,null,null,{"$f":"'Obtain Comp. Strength'!$C79^2*Calculations!$I$6+Calculations!$J$6*'Obtain Comp. Strength'!$C79+Calculations!$K$6","v":0},null,null,null,null,null,null,{"$f":"'Obtain Comp. Strength'!$C79^2*Calculations!$P$6+Calculations!$Q$6*'Obtain Comp. Strength'!$C79+Calculations!$R$6+Calculations!$O$6*'Obtain Comp. Strength'!$C79^3","v":0}]
[null,null,null,null,null,null,null,null,null,null,null,null,{"$f":"'Obtain Comp. Strength'!$C80^2*Calculations!$I$6+Calculations!$J$6*'Obtain Comp. Strength'!$C80+Calculations!$K$6","v":0},null,null,null,null,null,null,{"$f":"'Obtain Comp. Strength'!$C80^2*Calculations!$P$6+Calculations!$Q$6*'Obtain Comp. Strength'!$C80+Calculations!$R$6+Calculations!$O$6*'Obtain Comp. Strength'!$C80^3","v":0}]
[null,null,null,null,null,null,null,null,null,null,null,null,{"$f":"'Obtain Comp. Strength'!$C81^2*Calculations!$I$6+Calculations!$J$6*'Obtain Comp. Strength'!$C81+Calculations!$K$6","v":0},null,null,null,null,null,null,{"$f":"'Obtain Comp. Strength'!$C81^2*Calculations!$P$6+Calculations!$Q$6*'Obtain Comp. Strength'!$C81+Calculations!$R$6+Calculations!$O$6*'Obtain Comp. Strength'!$C81^3","v":0}]
[null,null,null,null,null,null,null,null,null,null,null,null,{"$f":"'Obtain Comp. Strength'!$C82^2*Calculations!$I$6+Calculations!$J$6*'Obtain Comp. Strength'!$C82+Calculations!$K$6","v":0},null,null,null,null,null,null,{"$f":"'Obtain Comp. Strength'!$C82^2*Calculations!$P$6+Calculations!$Q$6*'Obtain Comp. Strength'!$C82+Calculations!$R$6+Calculations!$O$6*'Obtain Comp. Strength'!$C82^3","v":0}]
[null,null,null,null,null,null,null,null,null,null,null,null,{"$f":"'Obtain Comp. Strength'!$C83^2*Calculations!$I$6+Calculations!$J$6*'Obtain Comp. Strength'!$C83+Calculations!$K$6","v":0},null,null,null,null,null,null,{"$f":"'Obtain Comp. Strength'!$C83^2*Calculations!$P$6+Calculations!$Q$6*'Obtain Comp. Strength'!$C83+Calculations!$R$6+Calculations!$O$6*'Obtain Comp. Strength'!$C83^3","v":0}]
[null,null,null,null,null,null,null,null,null,null,null,null,{"$f":"'Obtain Comp. Strength'!$C84^2*Calculations!$I$6+Calculations!$J$6*'Obtain Comp. Strength'!$C84+Calculations!$K$6","v":0},null,null,null,null,null,null,{"$f":"'Obtain Comp. Strength'!$C84^2*Calculations!$P$6+Calculations!$Q$6*'Obtain Comp. Strength'!$C84+Calculations!$R$6+Calculations!$O$6*'Obtain Comp. Strength'!$C84^3","v":0}]
[null,null,null,null,null,null,null,null,null,null,null,null,{"$f":"'Obtain Comp. Strength'!$C85^2*Calculations!$I$6+Calculations!$J$6*'Obtain Comp. Strength'!$C85+Calculations!$K$6","v":0},null,null,null,null,null,null,{"$f":"'Obtain Comp. Strength'!$C85^2*Calculations!$P$6+Calculations!$Q$6*'Obtain Comp. Strength'!$C85+Calculations!$R$6+Calculations!$O$6*'Obtain Comp. Strength'!$C85^3","v":0}]
[null,null,null,null,null,null,null,null,null,null,null,null,{"$f":"'Obtain Comp. Strength'!$C86^2*Calculations!$I$6+Calculations!$J$6*'Obtain Comp. Strength'!$C86+Calculations!$K$6","v":0},null,null,null,null,null,null,{"$f":"'Obtain Comp. Strength'!$C86^2*Calculations!$P$6+Calculations!$Q$6*'Obtain Comp. Strength'!$C86+Calculations!$R$6+Calculations!$O$6*'Obtain Comp. Strength'!$C86^3","v":0}]
[null,null,null,null,null,null,null,null,null,null,null,null,{"$f":"'Obtain Comp. Strength'!$C87^2*Calculations!$I$6+Calculations!$J$6*'Obtain Comp. Strength'!$C87+Calculations!$K$6","v":0},null,null,null,null,null,null,{"$f":"'Obtain Comp. Strength'!$C87^2*Calculations!$P$6+Calculations!$Q$6*'Obtain Comp. Strength'!$C87+Calculations!$R$6+Calculations!$O$6*'Obtain Comp. Strength'!$C87^3","v":0}]
[null,null,null,null,null,null,null,null,null,null,null,null,{"$f":"'Obtain Comp. Strength'!$C88^2*Calculations!$I$6+Calculations!$J$6*'Obtain Comp. Strength'!$C88+Calculations!$K$6","v":0},null,null,null,null,null,null,{"$f":"'Obtain Comp. Strength'!$C88^2*Calculations!$P$6+Calculations!$Q$6*'Obtain Comp. Strength'!$C88+Calculations!$R$6+Calculations!$O$6*'Obtain Comp. Strength'!$C88^3","v":0}]
[null,null,null,null,null,null,null,null,null,null,null,null,{"$f":"'Obtain Comp. Strength'!$C89^2*Calculations!$I$6+Calculations!$J$6*'Obtain Comp. Strength'!$C89+Calculations!$K$6","v":0},null,null,null,null,null,null,{"$f":"'Obtain Comp. Strength'!$C89^2*Calculations!$P$6+Calculations!$Q$6*'Obtain Comp. Strength'!$C89+Calculations!$R$6+Calculations!$O$6*'Obtain Comp. Strength'!$C89^3","v":0}]
[null,null,null,null,null,null,null,null,null,null,null,null,{"$f":"'Obtain Comp. Strength'!$C90^2*Calculations!$I$6+Calculations!$J$6*'Obtain Comp. Strength'!$C90+Calculations!$K$6","v":0},null,null,null,null,null,null,{"$f":"'Obtain Comp. Strength'!$C90^2*Calculations!$P$6+Calculations!$Q$6*'Obtain Comp. Strength'!$C90+Calculations!$R$6+Calculations!$O$6*'Obtain Comp. Strength'!$C90^3","v":0}]
[null,null,null,null,null,null,null,null,null,null,null,null,{"$f":"'Obtain Comp. Strength'!$C91^2*Calculations!$I$6+Calculations!$J$6*'Obtain Comp. Strength'!$C91+Calculations!$K$6","v":0},null,null,null,null,null,null,{"$f":"'Obtain Comp. Strength'!$C91^2*Calculations!$P$6+Calculations!$Q$6*'Obtain Comp. Strength'!$C91+Calculations!$R$6+Calculations!$O$6*'Obtain Comp. Strength'!$C91^3","v":0}]
[null,null,null,null,null,null,null,null,null,null,null,null,{"$f":"'Obtain Comp. Strength'!$C92^2*Calculations!$I$6+Calculations!$J$6*'Obtain Comp. Strength'!$C92+Calculations!$K$6","v":0},null,null,null,null,null,null,{"$f":"'Obtain Comp. Strength'!$C92^2*Calculations!$P$6+Calculations!$Q$6*'Obtain Comp. Strength'!$C92+Calculations!$R$6+Calculations!$O$6*'Obtain Comp. Strength'!$C92^3","v":0}]
[null,null,null,null,null,null,null,null,null,null,null,null,{"$f":"'Obtain Comp. Strength'!$C93^2*Calculations!$I$6+Calculations!$J$6*'Obtain Comp. Strength'!$C93+Calculations!$K$6","v":0},null,null,null,null,null,null,{"$f":"'Obtain Comp. Strength'!$C93^2*Calculations!$P$6+Calculations!$Q$6*'Obtain Comp. Strength'!$C93+Calculations!$R$6+Calculations!$O$6*'Obtain Comp. Strength'!$C93^3","v":0}]
[null,null,null,null,null,null,null,null,null,null,null,null,{"$f":"'Obtain Comp. Strength'!$C94^2*Calculations!$I$6+Calculations!$J$6*'Obtain Comp. Strength'!$C94+Calculations!$K$6","v":0},null,null,null,null,null,null,{"$f":"'Obtain Comp. Strength'!$C94^2*Calculations!$P$6+Calculations!$Q$6*'Obtain Comp. Strength'!$C94+Calculations!$R$6+Calculations!$O$6*'Obtain Comp. Strength'!$C94^3","v":0}]
[null,null,null,null,null,null,null,null,null,null,null,null,{"$f":"'Obtain Comp. Strength'!$C95^2*Calculations!$I$6+Calculations!$J$6*'Obtain Comp. Strength'!$C95+Calculations!$K$6","v":0},null,null,null,null,null,null,{"$f":"'Obtain Comp. Strength'!$C95^2*Calculations!$P$6+Calculations!$Q$6*'Obtain Comp. Strength'!$C95+Calculations!$R$6+Calculations!$O$6*'Obtain Comp. Strength'!$C95^3","v":0}]
[null,null,null,null,null,null,null,null,null,null,null,null,{"$f":"'Obtain Comp. Strength'!$C96^2*Calculations!$I$6+Calculations!$J$6*'Obtain Comp. Strength'!$C96+Calculations!$K$6","v":0},null,null,null,null,null,null,{"$f":"'Obtain Comp. Strength'!$C96^2*Calculations!$P$6+Calculations!$Q$6*'Obtain Comp. Strength'!$C96+Calculations!$R$6+Calculations!$O$6*'Obtain Comp. Strength'!$C96^3","v":0}]
[null,null,null,null,null,null,null,null,null,null,null,null,{"$f":"'Obtain Comp. Strength'!$C97^2*Calculations!$I$6+Calculations!$J$6*'Obtain Comp. Strength'!$C97+Calculations!$K$6","v":0},null,null,null,null,null,null,{"$f":"'Obtain Comp. Strength'!$C97^2*Calculations!$P$6+Calculations!$Q$6*'Obtain Comp. Strength'!$C97+Calculations!$R$6+Calculations!$O$6*'Obtain Comp. Strength'!$C97^3","v":0}]
[null,null,null,null,null,null,null,null,null,null,null,null,{"$f":"'Obtain Comp. Strength'!$C98^2*Calculations!$I$6+Calculations!$J$6*'Obtain Comp. Strength'!$C98+Calculations!$K$6","v":0},null,null,null,null,null,null,{"$f":"'Obtain Comp. Strength'!$C98^2*Calculations!$P$6+Calculations!$Q$6*'Obtain Comp. Strength'!$C98+Calculations!$R$6+Calculations!$O$6*'Obtain Comp. Strength'!$C98^3","v":0}]
[null,null,null,null,null,null,null,null,null,null,null,null,{"$f":"'Obtain Comp. Strength'!$C99^2*Calculations!$I$6+Calculations!$J$6*'Obtain Comp. Strength'!$C99+Calculations!$K$6","v":0},null,null,null,null,null,null,{"$f":"'Obtain Comp. Strength'!$C99^2*Calculations!$P$6+Calculations!$Q$6*'Obtain Comp. Strength'!$C99+Calculations!$R$6+Calculations!$O$6*'Obtain Comp. Strength'!$C99^3","v":0}]
[null,null,null,null,null,null,null,null,null,null,null,null,{"$f":"'Obtain Comp. Strength'!$C100^2*Calculations!$I$6+Calculations!$J$6*'Obtain Comp. Strength'!$C100+Calculations!$K$6","v":0},null,null,null,null,null,null,{"$f":"'Obtain Comp. Strength'!$C100^2*Calculations!$P$6+Calculations!$Q$6*'Obtain Comp. Strength'!$C100+Calculations!$R$6+Calculations!$O$6*'Obtain Comp. Strength'!$C100^3","v":0}]
[null,null,null,null,null,null,null,null,null,null,null,null,{"$f":"'Obtain Comp. Strength'!$C101^2*Calculations!$I$6+Calculations!$J$6*'Obtain Comp. Strength'!$C101+Calculations!$K$6","v":0},null,null,null,null,null,null,{"$f":"'Obtain Comp. Strength'!$C101^2*Calculations!$P$6+Calculations!$Q$6*'Obtain Comp. Strength'!$C101+Calculations!$R$6+Calculations!$O$6*'Obtain Comp. Strength'!$C101^3","v":0}]
[null,null,null,null,null,null,null,null,null,null,null,null,{"$f":"'Obtain Comp. Strength'!$C102^2*Calculations!$I$6+Calculations!$J$6*'Obtain Comp. Strength'!$C102+Calculations!$K$6","v":0},null,null,null,null,null,null,{"$f":"'Obtain Comp. Strength'!$C102^2*Calculations!$P$6+Calculations!$Q$6*'Obtain Comp. Strength'!$C102+Calculations!$R$6+Calculations!$O$6*'Obtain Comp. Strength'!$C102^3","v":0}]
[null,null,null,null,null,null,null,null,null,null,null,null,{"$f":"'Obtain Comp. Strength'!$C103^2*Calculations!$I$6+Calculations!$J$6*'Obtain Comp. Strength'!$C103+Calculations!$K$6","v":0},null,null,null,null,null,null,{"$f":"'Obtain Comp. Strength'!$C103^2*Calculations!$P$6+Calculations!$Q$6*'Obtain Comp. Strength'!$C103+Calculations!$R$6+Calculations!$O$6*'Obtain Comp. Strength'!$C103^3","v":0}]
[null,null,null,null,null,null,null,null,null,null,null,null,{"$f":"'Obtain Comp. Strength'!$C104^2*Calculations!$I$6+Calculations!$J$6*'Obtain Comp. Strength'!$C104+Calculations!$K$6","v":0},null,null,null,null,null,null,{"$f":"'Obtain Comp. Strength'!$C104^2*Calculations!$P$6+Calculations!$Q$6*'Obtain Comp. Strength'!$C104+Calculations!$R$6+Calculations!$O$6*'Obtain Comp. Strength'!$C104^3","v":0}]
[null,null,null,null,null,null,null,null,null,null,null,null,{"$f":"'Obtain Comp. Strength'!$C105^2*Calculations!$I$6+Calculations!$J$6*'Obtain Comp. Strength'!$C105+Calculations!$K$6","v":0},null,null,null,null,null,null,{"$f":"'Obtain Comp. Strength'!$C105^2*Calculations!$P$6+Calculations!$Q$6*'Obtain Comp. Strength'!$C105+Calculations!$R$6+Calculations!$O$6*'Obtain Comp. Strength'!$C105^3","v":0}]
[null,null,null,null,null,null,null,null,null,null,null,null,{"$f":"'Obtain Comp. Strength'!#REF!^2*Calculations!$I$6+Calculations!$J$6*'Obtain Comp. Strength'!#REF!+Calculations!$K$6","v":{"$error":"#REF!"}},null,null,null,null,null,null,{"$f":"'Obtain Comp. Strength'!#REF!^2*Calculations!$P$6+Calculations!$Q$6*'Obtain Comp. Strength'!#REF!+Calculations!$R$6+Calculations!$O$6*'Obtain Comp. Strength'!#REF!^3","v":{"$error":"#REF!"}}]
[null,null,null,null,null,null,null,null,null,null,null,null,{"$f":"'Obtain Comp. Strength'!#REF!^2*Calculations!$I$6+Calculations!$J$6*'Obtain Comp. Strength'!#REF!+Calculations!$K$6","v":{"$error":"#REF!"}},null,null,null,null,null,null,{"$f":"'Obtain Comp. Strength'!#REF!^2*Calculations!$P$6+Calculations!$Q$6*'Obtain Comp. Strength'!#REF!+Calculations!$R$6+Calculations!$O$6*'Obtain Comp. Strength'!#REF!^3","v":{"$error":"#REF!"}}]
[null,null,null,null,null,null,null,null,null,null,null,null,{"$f":"'Obtain Comp. Strength'!$C106^2*Calculations!$I$6+Calculations!$J$6*'Obtain Comp. Strength'!$C106+Calculations!$K$6","v":0},null,null,null,null,null,null,{"$f":"'Obtain Comp. Strength'!$C106^2*Calculations!$P$6+Calculations!$Q$6*'Obtain Comp. Strength'!$C106+Calculations!$R$6+Calculations!$O$6*'Obtain Comp. Strength'!$C106^3","v":0}]
[null,null,null,null,null,null,null,null,null,null,null,null,{"$f":"'Obtain Comp. Strength'!$C107^2*Calculations!$I$6+Calculations!$J$6*'Obtain Comp. Strength'!$C107+Calculations!$K$6","v":0},null,null,null,null,null,null,{"$f":"'Obtain Comp. Strength'!$C107^2*Calculations!$P$6+Calculations!$Q$6*'Obtain Comp. Strength'!$C107+Calculations!$R$6+Calculations!$O$6*'Obtain Comp. Strength'!$C107^3","v":0}]
[null,null,null,null,null,null,null,null,null,null,null,null,{"$f":"'Obtain Comp. Strength'!$C108^2*Calculations!$I$6+Calculations!$J$6*'Obtain Comp. Strength'!$C108+Calculations!$K$6","v":0},null,null,null,null,null,null,{"$f":"'Obtain Comp. Strength'!$C108^2*Calculations!$P$6+Calculations!$Q$6*'Obtain Comp. Strength'!$C108+Calculations!$R$6+Calculations!$O$6*'Obtain Comp. Strength'!$C108^3","v":0}]
[null,null,null,null,null,null,null,null,null,null,null,null,{"$f":"'Obtain Comp. Strength'!$C109^2*Calculations!$I$6+Calculations!$J$6*'Obtain Comp. Strength'!$C109+Calculations!$K$6","v":0},null,null,null,null,null,null,{"$f":"'Obtain Comp. Strength'!$C109^2*Calculations!$P$6+Calculations!$Q$6*'Obtain Comp. Strength'!$C109+Calculations!$R$6+Calculations!$O$6*'Obtain Comp. Strength'!$C109^3","v":0}]
[null,null,null,null,null,null,null,null,null,null,null,null,{"$f":"'Obtain Comp. Strength'!$C110^2*Calculations!$I$6+Calculations!$J$6*'Obtain Comp. Strength'!$C110+Calculations!$K$6","v":0},null,null,null,null,null,null,{"$f":"'Obtain Comp. Strength'!$C110^2*Calculations!$P$6+Calculations!$Q$6*'Obtain Comp. Strength'!$C110+Calculations!$R$6+Calculations!$O$6*'Obtain Comp. Strength'!$C110^3","v":0}]
[null,null,null,null,null,null,null,null,null,null,null,null,{"$f":"'Obtain Comp. Strength'!$C111^2*Calculations!$I$6+Calculations!$J$6*'Obtain Comp. Strength'!$C111+Calculations!$K$6","v":0},null,null,null,null,null,null,{"$f":"'Obtain Comp. Strength'!$C111^2*Calculations!$P$6+Calculations!$Q$6*'Obtain Comp. Strength'!$C111+Calculations!$R$6+Calculations!$O$6*'Obtain Comp. Strength'!$C111^3","v":0}]
[null,null,null,null,null,null,null,null,null,null,null,null,{"$f":"'Obtain Comp. Strength'!$C112^2*Calculations!$I$6+Calculations!$J$6*'Obtain Comp. Strength'!$C112+Calculations!$K$6","v":0},null,null,null,null,null,null,{"$f":"'Obtain Comp. Strength'!$C112^2*Calculations!$P$6+Calculations!$Q$6*'Obtain Comp. Strength'!$C112+Calculations!$R$6+Calculations!$O$6*'Obtain Comp. Strength'!$C112^3","v":0}]
[null,null,null,null,null,null,null,null,null,null,null,null,{"$f":"'Obtain Comp. Strength'!$C113^2*Calculations!$I$6+Calculations!$J$6*'Obtain Comp. Strength'!$C113+Calculations!$K$6","v":0},null,null,null,null,null,null,{"$f":"'Obtain Comp. Strength'!$C113^2*Calculations!$P$6+Calculations!$Q$6*'Obtain Comp. Strength'!$C113+Calculations!$R$6+Calculations!$O$6*'Obtain Comp. Strength'!$C113^3","v":0}]
[null,null,null,null,null,null,null,null,null,null,null,null,{"$f":"'Obtain Comp. Strength'!$C114^2*Calculations!$I$6+Calculations!$J$6*'Obtain Comp. Strength'!$C114+Calculations!$K$6","v":0},null,null,null,null,null,null,{"$f":"'Obtain Comp. Strength'!$C114^2*Calculations!$P$6+Calculations!$Q$6*'Obtain Comp. Strength'!$C114+Calculations!$R$6+Calculations!$O$6*'Obtain Comp. Strength'!$C114^3","v":0}]
[null,null,null,null,null,null,null,null,null,null,null,null,{"$f":"'Obtain Comp. Strength'!$C115^2*Calculations!$I$6+Calculations!$J$6*'Obtain Comp. Strength'!$C115+Calculations!$K$6","v":0},null,null,null,null,null,null,{"$f":"'Obtain Comp. Strength'!$C115^2*Calculations!$P$6+Calculations!$Q$6*'Obtain Comp. Strength'!$C115+Calculations!$R$6+Calculations!$O$6*'Obtain Comp. Strength'!$C115^3","v":0}]
[null,null,null,null,null,null,null,null,null,null,null,null,{"$f":"'Obtain Comp. Strength'!$C116^2*Calculations!$I$6+Calculations!$J$6*'Obtain Comp. Strength'!$C116+Calculations!$K$6","v":0},null,null,null,null,null,null,{"$f":"'Obtain Comp. Strength'!$C116^2*Calculations!$P$6+Calculations!$Q$6*'Obtain Comp. Strength'!$C116+Calculations!$R$6+Calculations!$O$6*'Obtain Comp. Strength'!$C116^3","v":0}]
[null,null,null,null,null,null,null,null,null,null,null,null,{"$f":"'Obtain Comp. Strength'!$C117^2*Calculations!$I$6+Calculations!$J$6*'Obtain Comp. Strength'!$C117+Calculations!$K$6","v":0},null,null,null,null,null,null,{"$f":"'Obtain Comp. Strength'!$C117^2*Calculations!$P$6+Calculations!$Q$6*'Obtain Comp. Strength'!$C117+Calculations!$R$6+Calculations!$O$6*'Obtain Comp. Strength'!$C117^3","v":0}]
[null,null,null,null,null,null,null,null,null,null,null,null,{"$f":"'Obtain Comp. Strength'!$C118^2*Calculations!$I$6+Calculations!$J$6*'Obtain Comp. Strength'!$C118+Calculations!$K$6","v":0},null,null,null,null,null,null,{"$f":"'Obtain Comp. Strength'!$C118^2*Calculations!$P$6+Calculations!$Q$6*'Obtain Comp. Strength'!$C118+Calculations!$R$6+Calculations!$O$6*'Obtain Comp. Strength'!$C118^3","v":0}]
[null,null,null,null,null,null,null,null,null,null,null,null,{"$f":"'Obtain Comp. Strength'!$C119^2*Calculations!$I$6+Calculations!$J$6*'Obtain Comp. Strength'!$C119+Calculations!$K$6","v":0},null,null,null,null,null,null,{"$f":"'Obtain Comp. Strength'!$C119^2*Calculations!$P$6+Calculations!$Q$6*'Obtain Comp. Strength'!$C119+Calculations!$R$6+Calculations!$O$6*'Obtain Comp. Strength'!$C119^3","v":0}]
[null,null,null,null,null,null,null,null,null,null,null,null,{"$f":"'Obtain Comp. Strength'!$C120^2*Calculations!$I$6+Calculations!$J$6*'Obtain Comp. Strength'!$C120+Calculations!$K$6","v":0},null,null,null,null,null,null,{"$f":"'Obtain Comp. Strength'!$C120^2*Calculations!$P$6+Calculations!$Q$6*'Obtain Comp. Strength'!$C120+Calculations!$R$6+Calculations!$O$6*'Obtain Comp. Strength'!$C120^3","v":0}]
[null,null,null,null,null,null,null,null,null,null,null,null,{"$f":"'Obtain Comp. Strength'!$C121^2*Calculations!$I$6+Calculations!$J$6*'Obtain Comp. Strength'!$C121+Calculations!$K$6","v":0},null,null,null,null,null,null,{"$f":"'Obtain Comp. Strength'!$C121^2*Calculations!$P$6+Calculations!$Q$6*'Obtain Comp. Strength'!$C121+Calculations!$R$6+Calculations!$O$6*'Obtain Comp. Strength'!$C121^3","v":0}]
[null,null,null,null,null,null,null,null,null,null,null,null,{"$f":"'Obtain Comp. Strength'!$C122^2*Calculations!$I$6+Calculations!$J$6*'Obtain Comp. Strength'!$C122+Calculations!$K$6","v":0}]
[null,null,null,null,null,null,null,null,null,null,null,null,{"$f":"'Obtain Comp. Strength'!$C123^2*Calculations!$I$6+Calculations!$J$6*'Obtain Comp. Strength'!$C123+Calculations!$K$6","v":0}]
[null,null,null,null,null,null,null,null,null,null,null,null,{"$f":"'Obtain Comp. Strength'!$C124^2*Calculations!$I$6+Calculations!$J$6*'Obtain Comp. Strength'!$C124+Calculations!$K$6","v":0}]
[null,null,null,null,null,null,null,null,null,null,null,null,{"$f":"'Obtain Comp. Strength'!$C125^2*Calculations!$I$6+Calculations!$J$6*'Obtain Comp. Strength'!$C125+Calculations!$K$6","v":0}]
[null,null,null,null,null,null,null,null,null,null,null,null,{"$f":"'Obtain Comp. Strength'!$C126^2*Calculations!$I$6+Calculations!$J$6*'Obtain Comp. Strength'!$C126+Calculations!$K$6","v":0}]
[null,null,null,null,null,null,null,null,null,null,null,null,{"$f":"'Obtain Comp. Strength'!$C127^2*Calculations!$I$6+Calculations!$J$6*'Obtain Comp. Strength'!$C127+Calculations!$K$6","v":0}]
[null,null,null,null,null,null,null,null,null,null,null,null,{"$f":"'Obtain Comp. Strength'!$C128^2*Calculations!$I$6+Calculations!$J$6*'Obtain Comp. Strength'!$C128+Calculations!$K$6","v":0}]
[null,null,null,null,null,null,null,null,null,null,null,null,{"$f":"'Obtain Comp. Strength'!$C129^2*Calculations!$I$6+Calculations!$J$6*'Obtain Comp. Strength'!$C129+Calculations!$K$6","v":0}]
[null,null,null,null,null,null,null,null,null,null,null,null,{"$f":"'Obtain Comp. Strength'!$C130^2*Calculations!$I$6+Calculations!$J$6*'Obtain Comp. Strength'!$C130+Calculations!$K$6","v":0}]
[null,null,null,null,null,null,null,null,null,null,null,null,{"$f":"'Obtain Comp. Strength'!$C131^2*Calculations!$I$6+Calculations!$J$6*'Obtain Comp. Strength'!$C131+Calculations!$K$6","v":0}]
[null,null,null,null,null,null,null,null,null,null,null,null,{"$f":"'Obtain Comp. Strength'!$C132^2*Calculations!$I$6+Calculations!$J$6*'Obtain Comp. Strength'!$C132+Calculations!$K$6","v":0}]
[null,null,null,null,null,null,null,null,null,null,null,null,{"$f":"'Obtain Comp. Strength'!$C133^2*Calculations!$I$6+Calculations!$J$6*'Obtain Comp. Strength'!$C133+Calculations!$K$6","v":0}]
[null,null,null,null,null,null,null,null,null,null,null,null,{"$f":"'Obtain Comp. Strength'!$C134^2*Calculations!$I$6+Calculations!$J$6*'Obtain Comp. Strength'!$C134+Calculations!$K$6","v":0}]
[null,null,null,null,null,null,null,null,null,null,null,null,{"$f":"'Obtain Comp. Strength'!$C135^2*Calculations!$I$6+Calculations!$J$6*'Obtain Comp. Strength'!$C135+Calculations!$K$6","v":0}]
[null,null,null,null,null,null,null,null,null,null,null,null,{"$f":"'Obtain Comp. Strength'!$C136^2*Calculations!$I$6+Calculations!$J$6*'Obtain Comp. Strength'!$C136+Calculations!$K$6","v":0}]
[null,null,null,null,null,null,null,null,null,null,null,null,{"$f":"'Obtain Comp. Strength'!$C137^2*Calculations!$I$6+Calculations!$J$6*'Obtain Comp. Strength'!$C137+Calculations!$K$6","v":0}]
[null,null,null,null,null,null,null,null,null,null,null,null,{"$f":"'Obtain Comp. Strength'!$C138^2*Calculations!$I$6+Calculations!$J$6*'Obtain Comp. Strength'!$C138+Calculations!$K$6","v":0}]
[null,null,null,null,null,null,null,null,null,null,null,null,{"$f":"'Obtain Comp. Strength'!$C139^2*Calculations!$I$6+Calculations!$J$6*'Obtain Comp. Strength'!$C139+Calculations!$K$6","v":0}]
[null,null,null,null,null,null,null,null,null,null,null,null,{"$f":"'Obtain Comp. Strength'!$C140^2*Calculations!$I$6+Calculations!$J$6*'Obtain Comp. Strength'!$C140+Calculations!$K$6","v":0}]
[null,null,null,null,null,null,null,null,null,null,null,null,{"$f":"'Obtain Comp. Strength'!$C141^2*Calculations!$I$6+Calculations!$J$6*'Obtain Comp. Strength'!$C141+Calculations!$K$6","v":0}]
[null,null,null,null,null,null,null,null,null,null,null,null,{"$f":"'Obtain Comp. Strength'!$C142^2*Calculations!$I$6+Calculations!$J$6*'Obtain Comp. Strength'!$C142+Calculations!$K$6","v":0}]
[null,null,null,null,null,null,null,null,null,null,null,null,{"$f":"'Obtain Comp. Strength'!$C143^2*Calculations!$I$6+Calculations!$J$6*'Obtain Comp. Strength'!$C143+Calculations!$K$6","v":0}]
[null,null,null,null,null,null,null,null,null,null,null,null,{"$f":"'Obtain Comp. Strength'!$C144^2*Calculations!$I$6+Calculations!$J$6*'Obtain Comp. Strength'!$C144+Calculations!$K$6","v":0}]
[null,null,null,null,null,null,null,null,null,null,null,null,{"$f":"'Obtain Comp. Strength'!$C145^2*Calculations!$I$6+Calculations!$J$6*'Obtain Comp. Strength'!$C145+Calculations!$K$6","v":0}]
[null,null,null,null,null,null,null,null,null,null,null,null,{"$f":"'Obtain Comp. Strength'!$C146^2*Calculations!$I$6+Calculations!$J$6*'Obtain Comp. Strength'!$C146+Calculations!$K$6","v":0}]
[null,null,null,null,null,null,null,null,null,null,null,null,{"$f":"'Obtain Comp. Strength'!$C147^2*Calculations!$I$6+Calculations!$J$6*'Obtain Comp. Strength'!$C147+Calculations!$K$6","v":0}]
[null,null,null,null,null,null,null,null,null,null,null,null,{"$f":"'Obtain Comp. Strength'!$C148^2*Calculations!$I$6+Calculations!$J$6*'Obtain Comp. Strength'!$C148+Calculations!$K$6","v":0}]
[null,null,null,null,null,null,null,null,null,null,null,null,{"$f":"'Obtain Comp. Strength'!$C149^2*Calculations!$I$6+Calculations!$J$6*'Obtain Comp. Strength'!$C149+Calculations!$K$6","v":0}]
[null,null,null,null,null,null,null,null,null,null,null,null,{"$f":"'Obtain Comp. Strength'!$C150^2*Calculations!$I$6+Calculations!$J$6*'Obtain Comp. Strength'!$C150+Calculations!$K$6","v":0}]
[null,null,null,null,null,null,null,null,null,null,null,null,{"$f":"'Obtain Comp. Strength'!$C151^2*Calculations!$I$6+Calculations!$J$6*'Obtain Comp. Strength'!$C151+Calculations!$K$6","v":0}]
[null,null,null,null,null,null,null,null,null,null,null,null,{"$f":"'Obtain Comp. Strength'!$C152^2*Calculations!$I$6+Calculations!$J$6*'Obtain Comp. Strength'!$C152+Calculations!$K$6","v":0}]

{"sheet":"Sheet1","index":3,"n_rows":26,"n_cols":13,"rows_kept":26,"cut":false,"hidden":true,"merged":[]}
[]
[null,null,null,null,null,null,null,"Mean B",{"$f":"AVERAGE(B7:B26)","v":39.92},null,null,"Mean C",{"$f":"+AVERAGE(C7:C26)","v":40.679999999999993}]
[null,null,null,null,null,null,null,"SD B",{"$f":"+STDEV(B7:B26)","v":22.584708380485662},null,null,"SD C",{"$f":"STDEV(C7:C26)","v":22.103979160704135}]
[]
[null,null,null,null,null,null,null,"Compressive Strenght",null,null,null,"SilverSch"]
[null,"Comp St","SS",null,null,null,null,"Z","Outlayer Z>3",null,null,"Z","Outlayer Z>3"]
[{"$f":"'Obtain constants'!B7","v":1},29.5,35.799999999999997,null,null,null,null,{"$f":"(B7-$I$2)/$I$3","v":-0.46137412201449601},{"$f":"ABS(H7)>1.5","v":false},null,null,{"$f":"(C7-$M$2)/$M$3","v":-0.22077472859165237},{"$f":"ABS(L7)>1.5","v":false}]
[{"$f":"'Obtain constants'!B8","v":2},32.6,37.5,null,null,null,null,-0.32411310682784167,{"$f":"ABS(H8)>1.5","v":false},null,null,{"$f":"(C8-$M$2)/$M$3","v":-0.14386549936915033},{"$f":"ABS(L8)>1.5","v":false}]
[{"$f":"'Obtain constants'!B9","v":3},40.299999999999997,45,null,null,null,null,1.6825543797073544E-2,false,null,null,0.19543992367129934,false]
[{"$f":"'Obtain constants'!B10","v":4},41.2,41.8,null,null,null,null,5.6675515948037936E-2,false,null,null,5.0669609840707355E-2,false]
[{"$f":"'Obtain constants'!B11","v":5},44.2,49,null,null,null,null,0.18950875645125173,false,null,null,0.37640281595953917,false]
[{"$f":"'Obtain constants'!B12","v":6},45.3,56,null,null,null,null,0.23821427796909653,false,null,null,0.69308787746395883,false]
[{"$f":"'Obtain constants'!B13","v":7},48.5,49,null,null,null,null,0.37990306783919137,false,null,null,0.37640281595953917,false]
[{"$f":"'Obtain constants'!B14","v":8},50.6,46.8,null,null,null,null,0.4728863361914411,false,null,null,0.27687322520100716,false]
[{"$f":"'Obtain constants'!B15","v":9},51.5,49.5,null,null,null,null,0.51273630834240513,false,null,null,0.39902317749556915,false]
[{"$f":"'Obtain constants'!B16","v":10},52,56,null,null,null,null,0.53487518175960747,false,null,null,0.69308787746395883,false]
[{"$f":"'Obtain constants'!B17","v":11},55.8,57.3,null,null,null,null,0.70313061973034485,false,null,null,0.75190081745763671,false]
[{"$f":"'Obtain constants'!B18","v":12},57,52.8,null,null,null,null,0.75626391593163045,false,null,null,0.54831756363336681,false]
[{"$f":"'Obtain constants'!B19","v":13},58.1,56.5,null,null,null,null,0.80496943744947558,false,null,null,0.71570823899998881,false]
[{"$f":"'Obtain constants'!B20","v":14},60.9,65.5,null,null,null,null,0.9289471285858083,false,null,null,1.1228747466485285,false]
[{"$f":"'Obtain constants'!B21","v":15},62.3,53.8,null,null,null,null,0.99093597415397472,false,null,null,0.59355828670542676,false]
[{"$f":"'Obtain constants'!B22","v":16},68.599999999999994,61.3,null,null,null,null,1.2698857792107237,false,null,null,0.93286370974587651,false]
[{"$f":"'Obtain constants'!B23","v":17},{"$f":"'Obtain constants'!C23","v":0},{"$f":"'Obtain constants'!D23","v":0},null,null,null,null,-1.7675676536294316,true,null,null,-1.8403926145713987,true]
[{"$f":"'Obtain constants'!B24","v":18},{"$f":"'Obtain constants'!C24","v":0},{"$f":"'Obtain constants'!D24","v":0},null,null,null,null,-1.7675676536294316,true,null,null,-1.8403926145713987,true]
[{"$f":"'Obtain constants'!B25","v":19},{"$f":"'Obtain constants'!C25","v":0},{"$f":"'Obtain constants'!D25","v":0},null,null,null,null,-1.7675676536294316,true,null,null,-1.8403926145713987,true]
[{"$f":"'Obtain constants'!B26","v":20},{"$f":"'Obtain constants'!C26","v":0},{"$f":"'Obtain constants'!D26","v":0},null,null,null,null,-1.7675676536294316,true,null,null,-1.8403926145713987,true]